bitfinex/quotes_SOLUSD_20250417
["timestamp","ask_amount","ask_price","bid_price","bid_amount"]
[1744919425223,30.51127695,132.71,132.67,26.0]
[1744919425442,30.51127695,132.72,132.67,56.51127695]
[1744919425833,7.53522718,132.71,132.67,56.51127695]
[1744919427430,7.53522718,132.71,132.67,30.51127695]
[1744919429362,7.53522718,132.71,132.64,0.063]
[1744919429363,30.51127695,132.69,132.64,0.063]
[1744919429545,7.53522718,132.71,132.64,0.063]
[1744919429546,30.51127695,132.68,132.64,0.063]
[1744919429737,30.51127695,132.69,132.64,38.11332012]
[1744919430242,38.047902,132.69,132.64,38.11332012]
[1744919430430,38.047902,132.69,132.65,30.51127695]
[1744919431032,38.047902,132.69,132.64,7.60204317]
[1744919431033,38.047902,132.69,132.64,38.11332012]
[1744919431843,30.51127695,132.66,132.64,0.063]
[1744919432151,30.51127695,132.65,132.64,0.063]
[1744919434062,38.04991245,132.65,132.64,0.063]
[1744919436932,7.5386355,132.65,132.64,0.063]
[1744919437149,30.51127695,132.65,132.64,0.063]
[1744919437344,30.51127695,132.66,132.64,0.063]
[1744919437543,30.51127695,132.69,132.64,30.57427695]
[1744919437746,56.69672083,132.7,132.65,30.51127695]
[1744919437945,6.4361,132.75,132.67,26.0]
[1744919438257,6.4361,132.75,132.71,30.51127695]
[1744919438258,13.96905668,132.75,132.71,30.51127695]
[1744919438457,44.48033363,132.75,132.71,30.51127695]
[1744919438658,30.51127695,132.72,132.66,26.0]
[1744919438858,30.51127695,132.71,132.66,56.51127695]
[1744919439050,13.96905668,132.75,132.68,38.04820791]
[1744919439051,30.51127695,132.73,132.68,38.04820791]
[1744919439243,44.48058216,132.75,132.7,30.51127695]
[1744919439434,7.53320521,132.75,132.71,30.51127695]
[1744919439638,38.04448216,132.75,132.7,30.51127695]
[1744919440239,30.51127695,132.74,132.7,30.51127695]
[1744919440646,38.04492231,132.74,132.7,30.51127695]
[1744919440947,38.04492231,132.74,132.69,38.04707667]
[1744919441463,38.04492208,132.74,132.7,30.51127695]
[1744919441655,38.04492208,132.74,132.69,38.04707667]
[1744919441855,30.51127695,132.72,132.68,30.51127695]
[1744919442161,30.51127695,132.72,132.68,38.04810131]
[1744919442371,30.51127695,132.72,132.68,30.51127695]
[1744919442563,38.04639167,132.72,132.67,38.04856025]
[1744919443059,30.51127695,132.7,132.66,26.0]
[1744919443242,30.51127695,132.68,132.64,0.063]
[1744919443851,24.89541043,132.71,132.64,0.063]
[1744919443852,30.51127695,132.67,132.64,0.063]
[1744919444146,30.51127695,132.66,132.64,0.063]
[1744919446456,38.04991245,132.65,132.64,0.063]
[1744919446868,30.51127695,132.65,132.64,0.063]
[1744919447054,38.04965044,132.66,132.64,0.063]
[1744919447251,30.51127695,132.66,132.64,0.063]
[1744919447452,30.51127695,132.68,132.64,0.063]
[1744919447657,30.51127695,132.68,132.64,30.57427695]
[1744919448452,30.51127695,132.69,132.65,7.5386355]
[1744919448648,30.51127695,132.68,132.64,38.11327013]
[1744919449479,30.51127695,132.65,132.64,0.063]
[1744919450146,30.51127695,132.66,132.64,0.063]
[1744919450659,30.51127695,132.65,132.64,0.063]
[1744919452151,30.51127695,132.66,132.64,0.063]
[1744919452352,30.51127695,132.65,132.64,0.063]
[1744919452570,7.53774169,132.67,132.64,0.063]
[1744919452981,30.51127695,132.65,132.64,0.063]
[1744919453154,38.04991245,132.65,132.64,0.063]
[1744919454364,56.84172288,132.65,132.64,0.063]
[1744919454878,93.62989983,132.65,132.64,0.063]
[1744919455171,93.91422297,132.65,132.64,0.063]
[1744919455355,99.36606886,132.65,132.64,0.063]
[1744919455553,99.36606886,132.65,132.64,1e-08]
[1744919456576,102.0906413,132.65,132.64,1e-08]
[1744919458258,68.85479191,132.65,132.64,1e-08]
[1744919458664,99.36606886,132.65,132.64,1e-08]
[1744919459070,93.91422297,132.65,132.64,1e-08]
[1744919460264,44.32681245,132.65,132.64,1e-08]
[1744919460471,38.04991245,132.65,132.64,1e-08]
[1744919461381,30.51127695,132.67,132.64,1e-08]
[1744919461686,13.59939176,132.73,132.66,30.51127695]
[1744919461867,13.59939176,132.73,132.65,30.51127695]
[1744919461868,38.04536871,132.73,132.69,30.51127695]
[1744919462074,30.51127695,132.7,132.67,7.53749508]
[1744919462278,7.53518818,132.72,132.68,30.51127695]
[1744919462786,38.04646513,132.72,132.67,38.04877203]
[1744919463892,30.51127695,132.71,132.64,26.00000001]
[1744919464064,30.51127695,132.68,132.64,1e-08]
[1744919464269,30.51127695,132.67,132.64,1e-08]
[1744919464864,30.51127695,132.66,132.64,1e-08]
[1744919465081,30.51127695,132.65,132.64,1e-08]
[1744919465268,38.04991245,132.65,132.64,1e-08]
[1744919468090,56.84172288,132.65,132.64,1e-08]
[1744919470188,113.63732297,132.65,132.64,1e-08]
[1744919470570,119.07816594,132.65,132.64,1e-08]
[1744919472419,125.30856594,132.65,132.64,1e-08]
[1744919473999,88.14040428,132.65,132.64,1e-08]
[1744919474368,62.14040428,132.65,132.64,1e-08]
[1744919474781,56.84172288,132.65,132.64,1e-08]
[1744919475102,56.69956131,132.65,132.64,1e-08]
[1744919475271,26.18828436,132.65,132.64,1e-08]
[1744919475473,7.53771977,132.67,132.64,1e-08]
[1744919475780,7.53712289,132.68,132.64,30.51127696]
[1744919475981,7.53579502,132.7,132.66,30.51127695]
[1744919476175,0.03,132.71,132.68,30.51127695]
[1744919476581,0.03,132.71,132.7,30.51127695]
[1744919477387,0.03,132.71,132.7,38.04707197]
[1744919478897,0.03,132.71,132.7,64.33139511]
[1744919479189,0.03,132.76,132.71,0.28432314]
[1744919479492,0.03,132.76,132.75,30.51127695]
[1744919479789,0.03,132.76,132.75,38.04423363]
[1744919480191,0.03,132.76,132.75,30.51127695]
[1744919480494,0.03,132.76,132.74,30.51127695]
[1744919480694,0.03,132.76,132.73,33.53368454]
[1744919480695,0.03,132.76,132.75,30.51127695]
[1744919481771,0.03,132.76,132.75,38.04423363]
[1744919482299,0.03,132.76,132.75,81.42855677]
[1744919482596,0.03,132.76,132.75,73.61127695]
[1744919483282,0.03,132.76,132.75,47.61127695]
[1744919484292,0.03,132.76,132.75,38.04423363]
[1744919484498,0.03,132.76,132.75,30.51127695]
[1744919485310,0.03,132.76,132.75,38.04423363]
[1744919485597,0.03,132.76,132.75,30.51127695]
[1744919485794,0.03,132.76,132.75,38.04423363]
[1744919485975,0.03,132.76,132.75,64.32855677]
[1744919486577,0.03,132.76,132.75,64.04423363]
[1744919487178,0.03,132.79,132.78,26.0]
[1744919487492,44.56587915,132.87,132.79,0.28432314]
[1744919487696,44.56587915,132.87,132.82,30.51127695]
[1744919487873,38.03809697,132.86,132.81,38.04076475]
[1744919488079,38.03809697,132.86,132.81,30.51127695]
[1744919488279,38.03809697,132.86,132.81,38.04068455]
[1744919488877,7.52682002,132.86,132.82,30.51127695]
[1744919489800,38.03809697,132.86,132.81,38.04068455]
[1744919490501,38.03809697,132.86,132.8,7.53012048]
[1744919490679,38.03809697,132.86,132.81,30.51127695]
[1744919490875,30.51127695,132.85,132.81,30.51127695]
[1744919491181,30.51127695,132.84,132.79,64.04179199]
[1744919491401,30.51127695,132.85,132.8,30.51127695]
[1744919491790,7.52682002,132.86,132.81,30.51127695]
[1744919491994,38.03809697,132.86,132.82,30.51127695]
[1744919492190,7.52682002,132.86,132.82,30.51127695]
[1744919493498,38.03809697,132.86,132.81,30.51127695]
[1744919493698,30.51127695,132.85,132.8,38.04124717]
[1744919494706,7.52744462,132.85,132.81,30.51127695]
[1744919494893,7.52688831,132.86,132.82,30.51127695]
[1744919495086,7.52730454,132.85,132.81,30.51127695]
[1744919495286,38.03825865,132.86,132.81,30.51127695]
[1744919495699,7.5269817,132.86,132.82,30.51127695]
[1744919496104,7.52748262,132.85,132.8,7.52997022]
[1744919496298,7.52748262,132.85,132.81,30.51127695]
[1744919496483,38.03821939,132.86,132.81,30.51127695]
[1744919496677,38.03821939,132.86,132.8,7.52997022]
[1744919496883,7.52694244,132.86,132.82,30.51127695]
[1744919497184,38.03821939,132.86,132.81,30.51127695]
[1744919497408,7.52694244,132.86,132.82,30.51127695]
[1744919498613,30.51127695,132.84,132.79,26.0]
[1744919498902,30.51127695,132.82,132.78,30.51127695]
[1744919499098,30.54127695,132.83,132.78,30.51127695]
[1744919499291,30.51127695,132.82,132.77,30.51127695]
[1744919499602,30.51127695,132.82,132.78,30.51127695]
[1744919499988,7.55886284,132.83,132.79,30.51127695]
[1744919500300,0.03,132.83,132.8,30.51127695]
[1744919500499,0.03,132.83,132.82,30.51127695]
[1744919500797,0.03,132.83,132.81,26.0]
[1744919501015,0.03,132.83,132.82,30.51127695]
[1744919503104,0.03,132.83,132.82,38.04026354]
[1744919503605,0.03,132.83,132.82,30.51127695]
[1744919504205,0.03,132.83,132.82,38.04026354]
[1744919508990,0.03,132.83,132.82,38.32458668]
[1744919509989,0.03,132.83,132.82,7.52898659]
[1744919510301,0.03,132.83,132.82,26.0]
[1744919511002,0.03,132.83,132.82,56.51127695]
[1744919511210,0.03,132.83,132.82,64.04026354]
[1744919511389,0.03,132.83,132.82,64.32458668]
[1744919511702,0.03,132.83,132.82,64.04026354]
[1744919512710,0.03,132.83,132.82,56.51127695]
[1744919513202,0.03,132.83,132.82,45.02104482]
[1744919513401,0.03,132.83,132.8,17.08]
[1744919513807,19.05104482,132.83,132.78,7.5307268]
[1744919514005,19.05104482,132.83,132.78,26.55177162]
[1744919514202,19.05104482,132.83,132.79,19.02104482]
[1744919514397,0.03,132.83,132.79,19.02104482]
[1744919514796,7.55841978,132.83,132.79,19.02104482]
[1744919515400,7.55841978,132.83,132.79,26.55158896]
[1744919516114,7.55841978,132.83,132.79,19.02104482]
[1744919516810,0.03,132.83,132.79,19.02104482]
[1744919517007,0.03,132.83,132.79,26.55136666]
[1744919518509,0.03,132.83,132.8,19.02104482]
[1744919519811,0.03,132.83,132.79,26.0]
[1744919520011,0.03,132.83,132.8,19.02104482]
[1744919520211,0.03,132.83,132.79,45.02104482]
[1744919520414,0.03,132.83,132.8,19.02104482]
[1744919525123,0.03,132.83,132.8,26.55102057]
[1744919525421,0.03,132.83,132.82,26.55003141]
[1744919527814,0.03,132.83,132.8,7.81444362]
[1744919528014,0.03,132.83,132.82,19.02104482]
[1744919528213,0.03,132.83,132.82,45.02104482]
[1744919528416,0.03,132.89,132.86,26.0]
[1744919528617,0.03,132.89,132.88,45.30536796]
[1744919528816,0.03,132.89,132.88,45.02104482]
[1744919529817,0.03,132.89,132.88,52.54663181]
[1744919532139,0.03,132.89,132.88,54.10293181]
[1744919532943,0.03,132.97,132.91,26.0]
[1744919533116,0.03,132.97,132.95,19.02104482]
[1744919534339,0.03,132.97,132.94,19.02104482]
[1744919534974,0.03,132.97,132.92,36.06104482]
[1744919534975,19.05104482,132.97,132.92,36.06104482]
[1744919535124,19.05104482,132.97,132.93,19.02104482]
[1744919535324,0.03,132.97,132.94,19.02104482]
[1744919536015,0.03,132.97,132.95,19.02104482]
[1744919536239,0.03,132.97,132.96,19.02104482]
[1744919536734,0.03,133.03,132.99,26.0]
[1744919536940,0.03,133.03,133.02,19.02104482]
[1744919539245,0.03,133.03,133.02,30.33470076]
[1744919540568,0.03,133.03,133.02,63.85236727]
[1744919540774,0.03,133.03,133.02,56.33470076]
[1744919540944,0.03,133.03,133.02,63.85236727]
[1744919542070,0.03,133.03,133.02,56.33470076]
[1744919542577,49.01434962,133.03,132.95,7.52162467]
[1744919542751,30.33470076,133.01,132.96,30.33470076]
[1744919543145,36.79020076,133.02,132.98,30.33470076]
[1744919543360,0.03,133.03,133.0,30.33470076]
[1744919543556,0.03,133.03,133.01,30.33470076]
[1744919544089,0.03,133.03,133.02,30.33470076]
[1744919544374,0.03,133.03,133.01,30.33470076]
[1744919544550,0.03,133.03,133.02,30.33470076]
[1744919544861,0.03,133.03,133.02,30.47686233]
[1744919545060,0.03,133.03,133.02,30.33470076]
[1744919545747,0.03,133.03,133.01,73.37470076]
[1744919545947,0.03,133.03,133.02,30.33470076]
[1744919546348,0.03,133.03,133.01,73.37470076]
[1744919546556,0.03,133.03,133.01,56.33470076]
[1744919546970,0.03,133.03,133.02,30.33470076]
[1744919547181,0.03,133.03,133.02,47.6590239]
[1744919547501,2.6016166,133.07,133.03,26.28432314]
[1744919547677,2.6016166,133.07,133.05,30.33470076]
[1744919547968,2.6016166,133.07,133.06,30.33470076]
[1744919548851,2.6016166,133.07,133.05,30.33470076]
[1744919549378,2.6016166,133.07,133.06,30.33470076]
[1744919550080,2.6016166,133.07,133.06,75.26867276]
[1744919550374,2.6016166,133.07,133.06,30.33470076]
[1744919550756,2.6016166,133.07,133.06,63.85010734]
[1744919550952,2.6016166,133.07,133.06,37.85010734]
[1744919552074,32.93631736,133.07,133.02,17.04]
[1744919552261,32.93631736,133.07,133.03,30.33470076]
[1744919552579,2.6016166,133.07,133.03,30.33470076]
[1744919552960,10.11659023,133.07,133.04,30.33470076]
[1744919553461,2.6016166,133.07,133.04,30.33470076]
[1744919553770,2.6016166,133.07,133.06,30.33470076]
[1744919554472,2.6016166,133.07,133.06,56.33470076]
[1744919555069,2.6016166,133.07,133.06,30.33470076]
[1744919555262,2.6016166,133.07,133.05,30.33470076]
[1744919555466,2.6016166,133.07,133.04,30.33470076]
[1744919556366,2.6016166,133.07,133.05,30.33470076]
[1744919559380,2.6016166,133.07,133.03,24.53692184]
[1744919559579,2.6016166,133.07,133.05,30.33470076]
[1744919560382,2.6016166,133.07,133.04,30.33470076]
[1744919560582,2.6016166,133.07,133.05,30.33470076]
[1744919560978,2.6016166,133.07,133.06,56.33470076]
[1744919561177,0.03,133.13,133.07,0.28432314]
[1744919561392,0.03,133.13,133.11,18.93767836]
[1744919561565,0.03,133.13,133.12,18.93767836]
[1744919561967,0.03,133.13,133.11,18.93767836]
[1744919562985,0.03,133.13,133.12,18.93767836]
[1744919564586,0.03,133.13,133.12,26.44969759]
[1744919565083,0.03,133.13,133.12,18.93767836]
[1744919565383,0.03,133.13,133.12,26.44969759]
[1744919565760,0.03,133.13,133.12,18.93767836]
[1744919567389,0.03,133.13,133.11,18.93767836]
[1744919568074,0.03,133.13,133.1,18.93767836]
[1744919568593,0.03,133.13,133.12,18.93767836]
[1744919569281,0.03,133.13,133.11,18.93767836]
[1744919569584,0.03,133.13,133.12,18.93767836]
[1744919569998,0.03,133.13,133.11,18.93767836]
[1744919570367,0.03,133.13,133.12,18.93767836]
[1744919571065,1.5366,133.19,133.12,63.58732722]
[1744919571367,18.93767836,133.23,133.18,18.93767836]
[1744919571567,18.93767836,133.21,133.16,18.93767836]
[1744919571784,32.84934543,133.26,133.15,26.0]
[1744919571785,18.93767836,133.23,133.18,18.93767836]
[1744919572178,25.34521817,133.26,133.19,18.93767836]
[1744919572502,7.50187546,133.3,133.24,18.93767836]
[1744919572672,45.19424249,133.3,133.25,18.93767836]
[1744919572868,18.93767836,133.26,133.21,18.93767836]
[1744919573069,18.93767836,133.25,133.2,44.93767836]
[1744919573274,18.93767836,133.24,133.19,18.93767836]
[1744919573774,0.42648471,133.26,133.19,18.93767836]
[1744919574097,18.93767836,133.24,133.19,18.93767836]
[1744919574294,18.79181043,133.24,133.2,18.93767836]
[1744919575291,45.09290449,133.24,133.19,26.44569468]
[1744919575587,26.15522613,133.24,133.2,18.93767836]
[1744919575797,7.50495386,133.25,133.21,18.93767836]
[1744919576269,26.44263222,133.25,133.21,18.93767836]
[1744919576466,26.44263222,133.25,133.2,18.93767836]
[1744919577088,26.44263222,133.25,133.2,26.44517983]
[1744919577388,26.44195469,133.26,133.21,18.93767836]
[1744919577596,26.44195469,133.26,133.22,18.93767836]
[1744919577770,7.50427633,133.26,133.22,18.93767836]
[1744919577973,26.44195469,133.26,133.21,18.93767836]
[1744919578290,7.50427633,133.26,133.21,18.93767836]
[1744919578472,26.44195469,133.26,133.21,26.44449277]
[1744919578673,7.50427633,133.26,133.22,18.93767836]
[1744919578885,45.09107636,133.27,133.22,18.93767836]
[1744919579385,18.93767836,133.26,133.22,18.93767836]
[1744919579891,18.93767836,133.26,133.22,26.44395484]
[1744919580191,18.93767836,133.26,133.22,18.93767836]
[1744919580383,18.79181043,133.26,133.18,61.77034327]
[1744919580577,18.93767836,133.24,133.19,7.50807117]
[1744919581086,18.93767836,133.2,133.15,18.93767836]
[1744919581289,18.93767836,133.2,133.16,18.93767836]
[1744919581489,18.93767836,133.22,133.17,18.93767836]
[1744919581790,7.50694392,133.21,133.17,18.93767836]
[1744919582375,18.93767836,133.26,133.2,18.93767836]
[1744919582573,37.69734553,133.27,133.22,18.93767836]
[1744919582788,18.93767836,133.24,133.16,33.50947609]
[1744919583089,18.93767836,133.2,133.15,18.93767836]
[1744919583293,25.02637836,133.22,133.17,18.93767836]
[1744919583798,18.93767836,133.18,133.14,18.93767836]
[1744919583998,26.44623667,133.19,133.14,26.44849235]
[1744919584201,26.44623667,133.19,133.15,18.93767836]
[1744919584378,6.0887,133.22,133.16,18.93767836]
[1744919584580,18.93767836,133.21,133.16,18.93767836]
[1744919585095,7.50716796,133.21,133.17,18.93767836]
[1744919585680,32.53300206,133.22,133.17,18.93767836]
[1744919586100,32.53300206,133.22,133.17,26.44656397]
[1744919586298,32.53300206,133.22,133.17,18.93767836]
[1744919586497,13.5953237,133.22,133.16,7.50949278]
[1744919586708,13.5953237,133.22,133.18,18.93767836]
[1744919587000,32.53300206,133.22,133.16,7.50949278]
[1744919587178,32.53300206,133.22,133.17,18.93767836]
[1744919587383,32.53300206,133.22,133.17,26.44665447]
[1744919587905,13.5953237,133.22,133.18,18.93767836]
[1744919588398,13.5953237,133.22,133.17,7.50897611]
[1744919588605,13.5953237,133.22,133.18,18.93767836]
[1744919588909,7.50469043,133.25,133.21,18.93767836]
[1744919589102,13.7055365,133.27,133.24,18.93767836]
[1744919589279,7.5037365,133.27,133.24,18.93767836]
[1744919589596,18.96767836,133.29,133.25,18.93767836]
[1744919589597,0.03,133.29,133.25,18.93767836]
[1744919590101,0.03,133.29,133.26,18.93767836]
[1744919590315,0.03,133.29,133.27,18.93767836]
[1744919590502,0.03,133.29,133.26,18.93767836]
[1744919590681,0.03,133.29,133.25,18.93767836]
[1744919590883,18.93767836,133.28,133.23,35.91767836]
[1744919591102,0.03,133.29,133.23,35.91767836]
[1744919591103,0.03,133.29,133.25,18.93767836]
[1744919591403,0.03,133.29,133.27,18.93767836]
[1744919592690,0.03,133.29,133.25,18.93767836]
[1744919592997,0.03,133.29,133.27,18.93767836]
[1744919593905,0.03,133.29,133.28,18.93767836]
[1744919594400,0.03,133.29,133.28,26.44067956]
[1744919594594,0.03,133.29,133.28,18.93767836]
[1744919595589,0.03,133.29,133.28,26.44067956]
[1744919596186,0.03,133.29,133.28,18.93767836]
[1744919596498,0.03,133.29,133.26,18.93767836]
[1744919596703,0.03,133.29,133.27,18.93767836]
[1744919598406,0.03,133.29,133.28,18.93767836]
[1744919598900,0.03,133.29,133.27,18.93767836]
[1744919599289,0.03,133.29,133.24,34.46964943]
[1744919599488,0.03,133.29,133.28,18.93767836]
[1744919600105,0.03,133.29,133.28,37.87535672]
[1744919600388,0.03,133.29,133.28,45.37835792]
[1744919600585,0.03,133.29,133.28,45.66268106]
[1744919600789,2.6016166,133.33,133.31,26.0]
[1744919601004,2.6016166,133.33,133.3,18.93767836]
[1744919601689,2.6016166,133.33,133.29,35.91767836]
[1744919601889,10.10181359,133.33,133.29,35.91767836]
[1744919602285,10.10181359,133.33,133.29,16.98]
[1744919602495,29.03949195,133.33,133.29,16.98]
[1744919602712,18.93767836,133.32,133.26,7.50386612]
[1744919602915,18.93767836,133.29,133.24,35.91767836]
[1744919603509,18.64964886,133.32,133.25,18.93767836]
[1744919603510,18.93767836,133.3,133.25,18.93767836]
[1744919603891,26.44004077,133.3,133.25,18.93767836]
[1744919604995,7.50236241,133.3,133.25,18.93767836]
[1744919605201,7.50236241,133.3,133.26,18.93767836]
[1744919605397,7.50075007,133.32,133.27,18.93767836]
[1744919605593,7.50075007,133.32,133.29,18.93767836]
[1744919605789,10.10207248,133.33,133.3,18.93767836]
[1744919605996,10.10207248,133.33,133.29,18.93767836]
[1744919606493,10.10207248,133.33,133.3,18.93767836]
[1744919607112,2.6016166,133.33,133.32,18.93767836]
[1744919607304,2.6016166,133.33,133.32,35.91767836]
[1744919608016,2.6016166,133.33,133.32,43.41842843]
[1744919610509,2.6016166,133.33,133.32,26.43842843]
[1744919610815,2.6016166,133.33,133.31,26.43876027]
[1744919610990,2.6016166,133.33,133.31,18.93767836]
[1744919611194,2.6016166,133.33,133.32,30.20630378]
[1744919611606,2.6016166,133.33,133.31,7.50127242]
[1744919611808,2.6016166,133.33,133.32,30.20630378]
[1744919612890,2.6016166,133.33,133.31,16.96]
[1744919613311,2.6016166,133.33,133.31,47.16630378]
[1744919613899,2.6016166,133.33,133.31,16.96]
[1744919614111,2.6016166,133.33,133.31,47.16630378]
[1744919614500,2.6016166,133.33,133.29,7.50234634]
[1744919614701,2.6016166,133.33,133.3,30.20630378]
[1744919615222,2.6016166,133.33,133.31,30.20630378]
[1744919615717,10.10190449,133.33,133.3,30.20630378]
[1744919616419,2.6016166,133.33,133.32,30.20630378]
[1744919618113,2.6016166,133.33,133.32,37.70705385]
[1744919618919,2.6016166,133.33,133.32,30.20630378]
[1744919619215,2.6016166,133.33,133.32,37.70705385]
[1744919621407,2.6016166,133.33,133.32,7.50075007]
[1744919621711,2.6016166,133.33,133.32,37.70705385]
[1744919623619,0.03,133.36,133.33,26.0]
[1744919623813,0.03,133.36,133.35,30.20630378]
[1744919624019,0.03,133.36,133.35,60.41260756]
[1744919624205,0.03,133.36,133.35,67.91167017]
[1744919624617,0.03,133.36,133.35,54.66536639]
[1744919625321,0.03,133.36,133.34,37.70578711]
[1744919625917,0.03,133.36,133.34,30.20630378]
[1744919626312,0.03,133.36,133.33,16.96]
[1744919626525,0.03,133.36,133.33,47.16630378]
[1744919627035,0.03,133.36,133.33,16.96]
[1744919627727,0.03,133.36,133.33,47.16630378]
[1744919628127,0.03,133.36,133.33,16.96]
[1744919628333,7.52850029,133.36,133.33,16.96]
[1744919628536,36.48220378,133.35,133.3,30.20630378]
[1744919628835,30.20630378,133.34,133.29,54.66854808]
[1744919629031,30.20630378,133.34,133.29,47.16630378]
[1744919629210,30.20630378,133.32,133.27,37.70950574]
[1744919629617,30.20630378,133.32,133.26,54.67019341]
[1744919630115,30.20630378,133.3,133.26,16.96]
[1744919630335,37.70847429,133.3,133.26,16.96]
[1744919630826,7.50217051,133.3,133.26,47.16630378]
[1744919631151,7.50217051,133.3,133.26,30.20630378]
[1744919631318,30.20630378,133.29,133.23,16.96]
[1744919631631,30.20630378,133.29,133.24,30.20630378]
[1744919631834,30.20630378,133.28,133.23,47.16630378]
[1744919632136,30.20630378,133.28,133.2,233.74]
[1744919632137,30.20630378,133.26,133.2,233.74]
[1744919632337,7.50516544,133.25,133.21,0.063]
[1744919632547,7.50516544,133.25,133.22,30.20630378]
[1744919632712,7.50516544,133.25,133.21,30.26930378]
[1744919633420,6.0809,133.31,133.24,56.20630378]
[1744919633638,6.0809,133.31,133.28,30.20630378]
[1744919633838,6.0809,133.31,133.23,30.20630378]
[1744919633839,30.20630378,133.29,133.23,30.20630378]
[1744919634039,30.20630378,133.28,133.23,30.20630378]
[1744919634340,30.20630378,133.29,133.24,30.20630378]
[1744919635138,37.7091901,133.29,133.24,30.20630378]
[1744919636043,37.7091901,133.29,133.23,7.50536625]
[1744919636233,37.7091901,133.29,133.24,30.20630378]
[1744919637523,30.20630378,133.28,133.23,30.20630378]
[1744919638338,37.70982319,133.28,133.23,30.20630378]
[1744919638546,7.50351941,133.28,133.24,30.20630378]
[1744919639040,37.70982319,133.28,133.23,30.20630378]
[1744919640424,7.50269353,133.29,133.26,30.20630378]
[1744919641427,7.50269353,133.29,133.22,7.50598863]
[1744919641627,37.70899731,133.29,133.24,30.20630378]
[1744919642031,30.20630378,133.28,133.23,30.20630378]
[1744919642239,7.50269353,133.29,133.22,7.50598863]
[1744919642240,37.70986797,133.27,133.22,30.20630378]
[1744919642445,37.70986797,133.27,133.22,47.16630378]
[1744919642647,37.70986797,133.27,133.21,0.063]
[1744919642648,48.85595264,133.26,133.21,0.063]
[1744919642954,30.20630378,133.24,133.21,0.063]
[1744919644029,30.20630378,133.23,133.21,0.063]
[1744919644230,7.50638042,133.22,133.21,0.063]
[1744919644743,37.7126842,133.22,133.21,0.063]
[1744919645131,7.50638042,133.22,133.21,0.063]
[1744919646247,7.505817,133.23,133.21,0.063]
[1744919646646,30.20630378,133.22,133.21,0.063]
[1744919646853,37.71212078,133.23,133.21,0.063]
[1744919648355,7.505817,133.23,133.21,0.063]
[1744919648551,37.71212078,133.23,133.21,0.063]
[1744919648750,7.50545488,133.24,133.21,0.063]
[1744919649356,37.71175866,133.24,133.21,0.063]
[1744919649658,7.50545488,133.24,133.21,0.063]
[1744919649839,7.50469043,133.25,133.21,30.26930378]
[1744919650344,7.50131272,133.31,133.24,30.20630378]
[1744919650656,7.50131272,133.31,133.27,30.20630378]
[1744919650856,7.50131272,133.31,133.28,30.20630378]
[1744919651154,6.0806,133.32,133.28,30.20630378]
[1744919651350,0.03,133.36,133.31,30.20630378]
[1744919651554,0.03,133.36,133.28,30.20630378]
[1744919651555,0.03,133.36,133.33,30.20630378]
[1744919651739,7.52866043,133.36,133.32,30.20630378]
[1744919652439,37.73496421,133.36,133.31,30.20630378]
[1744919652834,7.52866043,133.36,133.32,30.20630378]
[1744919653052,37.73496421,133.36,133.31,30.20630378]
[1744919653550,37.73496421,133.36,133.31,37.70753118]
[1744919653937,7.52866043,133.36,133.31,37.70753118]
[1744919654134,37.73496421,133.36,133.31,37.70753118]
[1744919654758,37.73496421,133.36,133.32,30.20630378]
[1744919655141,37.73496421,133.36,133.31,7.5012274]
[1744919655347,37.73496421,133.36,133.31,30.20630378]
[1744919656254,7.52866043,133.36,133.31,37.70761224]
[1744919656451,7.52866043,133.36,133.32,30.20630378]
[1744919656656,7.52866043,133.36,133.33,30.20630378]
[1744919656855,7.52866043,133.36,133.31,7.50130846]
[1744919656856,0.03,133.36,133.34,30.20630378]
[1744919658556,0.03,133.36,133.33,30.20630378]
[1744919658869,0.03,133.36,133.35,30.20630378]
[1744919660252,0.03,133.36,133.35,77.37260756]
[1744919660570,0.03,133.36,133.35,30.20630378]
[1744919660741,0.03,133.36,133.34,47.16630378]
[1744919661067,0.03,133.36,133.31,7.50098082]
[1744919661256,0.03,133.36,133.32,30.20630378]
[1744919662158,0.03,133.36,133.33,30.20630378]
[1744919662357,0.03,133.36,133.32,7.50038799]
[1744919662358,0.03,133.36,133.34,30.20630378]
[1744919662576,0.03,133.36,133.3,20.27280738]
[1744919662577,30.20630378,133.35,133.3,7.50165222]
[1744919662861,30.20630378,133.35,133.31,30.20630378]